bitfinex/quotes_ETHUSD_20250913
["timestamp","ask_amount","ask_price","bid_price","bid_amount"]
[1757728371820,9.99570122,4702.9,4702.8,0.061]
[1757728372162,9.99770122,4702.9,4702.8,0.061]
[1757728372486,11.36309542,4702.9,4702.8,0.061]
[1757728372687,12.12404879,4702.9,4702.8,0.061]
[1757728373102,6.44170122,4702.9,4702.8,0.061]
[1757728373273,9.23674785,4702.9,4702.8,0.061]
[1757728373468,8.77524785,4702.9,4702.8,0.061]
[1757728373663,6.93421303,4702.9,4702.8,0.0649]
[1757728373869,2.01584785,4702.9,4702.8,0.0649]
[1757728374104,4.52228132,4702.9,4702.8,0.061]
[1757728374263,4.98378132,4702.9,4702.8,0.061]
[1757728374473,5.31428132,4702.9,4702.8,0.061]
[1757728375184,5.31428132,4702.9,4702.8,0.0649]
[1757728375378,6.20226269,4702.9,4702.8,0.0649]
[1757728375591,2.64526269,4702.9,4702.8,0.0649]
[1757728375894,6.20226269,4702.9,4702.8,0.0649]
[1757728376291,2.64526269,4702.9,4702.8,0.0649]
[1757728376482,5.31328132,4702.9,4702.8,0.0649]
[1757728378006,5.31328132,4702.9,4702.8,0.061]
[1757728378169,1.75728132,4702.9,4702.8,0.061]
[1757728378373,0.1965128,4702.9,4702.8,0.0649]
[1757728378566,0.42456722,4703.0,4702.8,0.0649]
[1757728378768,3.558,4702.9,4702.8,0.0649]
[1757728379014,4.35,4702.9,4702.8,0.0649]
[1757728379889,3.558,4702.9,4702.8,0.0673]
[1757728380213,0.792,4702.9,4702.8,0.0649]
[1757728380512,4.352,4702.9,4702.8,0.0649]
[1757728381629,4.8498945,4702.9,4702.8,0.061]
[1757728382494,4.8498945,4702.9,4702.8,0.0649]
[1757728382715,4.8498945,4702.9,4702.8,0.061]
[1757728382924,4.8498945,4702.9,4702.8,0.0649]
[1757728383917,4.352,4702.9,4702.8,0.0649]
[1757728384316,0.19789003,4703.5,4702.8,0.0673]
[1757728384528,6.1306,4703.6,4702.8,0.0649]
[1757728384714,1.64925383,4703.5,4702.8,0.061]
[1757728384893,0.792,4703.3,4702.8,0.061]
[1757728385092,0.792,4703.1,4702.8,0.061]
[1757728385286,0.792,4702.9,4702.8,0.061]
[1757728386599,3.6528,4702.9,4702.8,0.061]
[1757728387095,3.85053524,4702.9,4702.8,0.061]
[1757728387294,4.90815236,4702.9,4702.8,0.061]
[1757728387530,7.03449993,4702.9,4702.8,0.061]
[1757728387701,4.90815236,4702.9,4702.8,0.061]
[1757728388929,5.60935236,4702.9,4702.8,0.061]
[1757728389176,5.09525352,4702.9,4702.8,0.061]
[1757728389629,7.95605352,4702.9,4702.8,0.061]
[1757728389834,8.3515268,4702.9,4702.8,0.061]
[1757728390035,8.47016948,4702.9,4702.8,0.061]
[1757728391897,10.59651705,4702.9,4702.8,0.061]
[1757728392329,11.05207408,4702.9,4702.8,0.061]
[1757728393560,8.92572651,4702.9,4702.8,0.061]
[1757728393756,8.47016948,4702.9,4702.8,0.061]
[1757728394390,4.90816948,4702.9,4702.8,0.061]
[1757728394689,8.15478876,4702.9,4702.8,0.061]
[1757728394982,8.47116948,4702.9,4702.8,0.061]
[1757728396361,5.61036948,4702.9,4702.8,0.061]
[1757728396567,5.29398876,4702.9,4702.8,0.061]
[1757728396739,0.19773524,4702.9,4702.8,0.0649]
[1757728396943,3.564,4702.9,4702.8,0.0649]
[1757728398441,4.356,4702.9,4702.8,0.0649]
[1757728398639,3.564,4702.9,4702.8,0.0649]
[1757728398939,4.356,4702.9,4702.8,0.0649]
[1757728400084,4.356,4702.9,4702.8,0.061]
[1757728400467,7.6724,4702.9,4702.8,0.061]
[1757728401152,7.87008235,4702.9,4702.8,0.061]
[1757728401358,8.18637832,4702.9,4702.8,0.061]
[1757728401556,10.31272589,4702.9,4702.8,0.061]
[1757728402468,8.64191138,4702.9,4702.8,0.061]
[1757728402674,8.18637832,4702.9,4702.8,0.061]
[1757728404587,10.31272589,4702.9,4702.8,0.061]
[1757728405378,13.76825895,4702.9,4702.8,0.061]
[1757728406789,11.64191138,4702.9,4702.8,0.061]
[1757728407490,13.76825895,4702.9,4702.8,0.061]
[1757728407850,13.76826877,4702.9,4702.8,0.061]
[1757728408312,11.6419212,4702.9,4702.8,0.061]
[1757728409082,13.76826877,4702.9,4702.8,0.061]
[1757728411297,13.76819166,4702.9,4702.8,0.061]
[1757728412295,2.91857366,4702.4,4702.3,0.001]
[1757728412466,8.30823175,4702.4,4702.3,0.001]
[1757728412667,11.50528469,4702.4,4702.3,0.001]
[1757728412867,11.96081775,4702.4,4702.3,0.001]
[1757728413491,14.96081775,4702.4,4702.3,0.001]
[1757728413794,16.91345367,4702.4,4702.3,0.001]
[1757728414178,14.78688001,4702.4,4702.3,0.001]
[1757728414996,11.90708001,4702.4,4702.3,0.0049]
[1757728415163,11.90708001,4702.4,4702.3,0.001]
[1757728415559,14.78788001,4702.4,4702.3,0.001]
[1757728416200,16.91445367,4702.4,4702.3,0.001]
[1757728417170,16.59820073,4702.4,4702.3,0.001]
[1757728417460,16.71684716,4702.4,4702.3,0.001]
[1757728417817,16.51918865,4702.4,4702.3,0.001]
[1757728418263,16.40054264,4702.4,4702.3,0.001]
[1757728418462,16.71695798,4702.4,4702.3,0.001]
[1757728418680,16.51919889,4702.4,4702.3,0.001]
[1757728418964,16.40054264,4702.4,4702.3,0.001]
[1757728419581,16.40254264,4702.4,4702.3,0.001]
[1757728419794,13.69382651,4702.4,4702.3,0.001]
[1757728419969,13.61472415,4702.4,4702.3,0.001]
[1757728420519,14.0102169,4702.4,4702.3,0.001]
[1757728420669,14.4804169,4702.4,4702.3,0.001]
[1757728421322,14.48036656,4702.4,4702.3,0.001]
[1757728422723,14.79006656,4702.4,4702.3,0.001]
[1757728422924,12.37946656,4702.4,4702.3,0.001]
[1757728423098,11.79061704,4702.4,4702.3,0.001]
[1757728423302,4.88970056,4702.4,4702.3,0.0049]
[1757728423626,6.18372403,4702.4,4702.3,0.0049]
[1757728423813,6.50006464,4702.4,4702.3,0.0049]
[1757728424628,6.49906464,4702.4,4702.3,0.0049]
[1757728425829,8.96106464,4702.4,4702.3,0.001]
[1757728425995,9.39596464,4702.4,4702.3,0.001]
[1757728426195,10.54820864,4702.4,4702.3,0.001]
[1757728426594,12.6747823,4702.4,4702.3,0.001]
[1757728427326,13.13026409,4702.4,4702.3,0.001]
[1757728427529,12.6747823,4702.4,4702.3,0.001]
[1757728428128,13.13037695,4702.4,4702.3,0.001]
[1757728428830,13.13051608,4702.4,4702.3,0.001]
[1757728429229,16.13051608,4702.4,4702.3,0.001]
[1757728429527,2.9187998,4701.9,4701.8,0.001]
[1757728429716,5.38231365,4701.9,4701.8,0.001]
[1757728430116,8.25211365,4701.9,4701.8,0.001]
[1757728430697,5.38231365,4701.9,4701.8,0.001]
[1757728432509,5.38255729,4701.9,4701.8,0.0049]
[1757728432905,7.80845729,4701.9,4701.8,0.001]
[1757728433110,8.25235729,4701.9,4701.8,0.001]
[1757728433843,5.38255729,4701.9,4701.8,0.001]
[1757728436313,5.8265215,4701.9,4701.8,0.001]
[1757728436648,7.9515215,4701.9,4701.8,0.001]
[1757728436816,5.3826215,4701.9,4701.8,0.0049]
[1757728437024,7.8085215,4701.9,4701.8,0.001]
[1757728437253,5.3826215,4701.9,4701.8,0.001]
[1757728438535,0.51451162,4701.9,4701.8,0.0049]
[1757728438735,3.56,4701.9,4701.8,0.0049]
[1757728438959,4.352,4701.9,4701.8,0.0049]
[1757728440636,7.2218,4701.9,4701.8,0.001]
[1757728440834,4.86660813,4701.9,4701.8,0.0049]
[1757728441034,4.356,4701.9,4701.8,0.0049]
[1757728441641,5.15970632,4701.9,4701.8,0.001]
[1757728441836,4.84305909,4701.9,4701.8,0.001]
[1757728442353,5.35764996,4701.9,4701.8,0.001]
[1757728442552,4.84305909,4701.9,4701.8,0.001]
[1757728443357,5.35764996,4701.9,4701.8,0.001]
[1757728443566,4.84305909,4701.9,4701.8,0.001]
[1757728444155,5.15970632,4701.9,4701.8,0.001]
[1757728444450,4.84305909,4701.9,4701.8,0.001]
[1757728444862,4.9618017,4701.9,4701.8,0.001]
[1757728445062,4.84305909,4701.9,4701.8,0.001]
[1757728445483,5.15970632,4701.9,4701.8,0.001]
[1757728445639,4.84305909,4701.9,4701.8,0.001]
[1757728446192,8.22744996,4701.9,4701.8,0.001]
[1757728446358,8.22734626,4701.9,4701.8,0.001]
[1757728447283,8.22727346,4701.9,4701.8,0.001]
[1757728449066,1.79347346,4701.9,4701.8,0.001]
[1757728449270,4.356,4701.9,4701.8,0.001]
[1757728449473,7.2258,4701.9,4701.8,0.001]
[1757728449767,9.86701417,4701.9,4701.8,0.001]
[1757728450115,7.74021437,4701.9,4701.8,0.001]
[1757728451021,4.87041437,4701.9,4701.8,0.001]
[1757728451169,4.67357443,4701.9,4701.8,0.001]
[1757728451370,5.71760587,4701.9,4701.8,0.001]
[1757728451873,5.91544581,4701.9,4701.8,0.001]
[1757728452080,5.91544581,4701.9,4701.8,0.0049]
[1757728452378,2.2317032,4701.9,4701.8,0.0049]
[1757728452574,5.40103144,4701.9,4701.8,0.0049]
[1757728452810,5.71760587,4701.9,4701.8,0.0049]
[1757728453076,5.40103144,4701.9,4701.8,0.0049]
[1757728453417,5.59886326,4701.9,4701.8,0.0049]
[1757728453627,5.40103144,4701.9,4701.8,0.0049]
[1757728453807,5.59886326,4701.9,4701.8,0.0049]
[1757728454133,5.40103144,4701.9,4701.8,0.0049]
[1757728454274,5.59886326,4701.9,4701.8,0.0049]
[1757728454474,5.40103144,4701.9,4701.8,0.0049]
[1757728456073,4.357,4701.9,4701.8,0.0049]
[1757728456273,4.356,4701.9,4701.8,0.0049]
[1757728457491,4.355,4701.9,4701.8,0.0049]
[1757728459119,0.792,4701.9,4701.8,0.0049]
[1757728459445,3.463,4702.0,4701.8,0.0049]
[1757728459609,3.567,4701.9,4701.8,0.0049]
[1757728460456,3.567,4701.9,4701.8,0.0073]
[1757728460831,3.567,4701.9,4701.8,0.0049]
[1757728462362,4.359,4701.9,4701.8,0.0049]
[1757728464744,4.359,4701.9,4701.8,0.001]
[1757728465042,4.359,4701.9,4701.8,0.0049]
[1757728465213,4.359,4701.9,4701.8,0.001]
[1757728465610,7.1028,4701.9,4701.8,0.001]
[1757728466522,6.6656,4701.9,4701.8,0.001]
[1757728466726,7.1028,4701.9,4701.8,0.001]
[1757728468244,6.3576,4701.9,4701.8,0.001]
[1757728468444,4.359,4701.9,4701.8,0.001]
[1757728469070,6.7948,4701.9,4701.8,0.001]
[1757728469572,7.1028,4701.9,4701.8,0.001]
[1757728469874,7.18786539,4701.9,4701.8,0.001]
[1757728471750,4.44406539,4701.9,4701.8,0.0049]
[1757728471955,0.87706539,4701.9,4701.8,0.0049]
[1757728472195,4.43906539,4701.9,4701.8,0.0049]
[1757728472766,3.64706539,4701.9,4701.8,0.0049]
[1757728473090,0.002,4702.3,4701.8,0.0049]
[1757728473298,3.562,4702.2,4701.8,0.0049]
[1757728473793,0.08505237,4702.0,4701.8,0.0049]
[1757728473968,3.563,4701.9,4701.8,0.0049]
[1757728474167,3.563,4701.9,4701.8,0.001]
[1757728474376,3.563,4701.9,4701.8,0.0049]
[1757728474766,3.563,4701.9,4701.8,0.001]
[1757728474964,4.0002,4701.9,4701.8,0.001]
[1757728475366,3.563,4701.9,4701.8,0.001]
[1757728475987,3.563,4701.9,4701.8,0.0049]
[1757728477002,7.66366524,4701.9,4701.8,0.001]
[1757728477574,6.91846524,4701.9,4701.8,0.001]
[1757728477776,1.35686524,4701.9,4701.8,0.0049]
[1757728477987,0.792,4701.8,4700.8,0.0173]
[1757728478187,3.568,4701.7,4700.8,0.0173]
[1757728479888,0.63795785,4701.6,4700.8,0.0173]
[1757728481168,0.002,4702.3,4700.8,0.0173]
[1757728481373,0.002,4702.3,4700.9,0.50777672]
[1757728481704,0.63789003,4702.1,4700.9,0.50777672]
[1757728481868,0.4372,4702.0,4700.9,0.50777672]
[1757728482190,0.4372,4702.0,4700.9,0.25541191]
[1757728482701,2.4358,4702.0,4700.9,0.25541191]
[1757728483018,2.4358,4702.0,4700.8,1.6493]
[1757728485224,0.3106,4700.9,4700.8,0.0173]
[1757728485371,2.662869,4702.0,4700.8,0.0173]
[1757728485372,3.567,4701.1,4700.8,0.0173]
[1757728485569,3.4462,4700.9,4700.8,0.0173]
[1757728486715,3.87796466,4700.9,4700.8,0.0173]
[1757728489824,0.792,4699.5,4698.8,0.06]
[1757728489990,2.12734273,4700.7,4698.8,0.06]
[1757728489991,0.792,4699.3,4698.8,0.06]
[1757728490192,0.792,4698.8,4696.3,0.056]
[1757728490506,3.0,4699.1,4696.4,0.0134]
[1757728490507,0.792,4698.6,4696.4,0.0134]
[1757728490709,0.792,4698.4,4696.4,0.26881191]
[1757728490909,0.792,4698.2,4696.5,0.0134]
[1757728491120,2.0465,4698.5,4696.6,0.961]
[1757728491440,0.792,4698.3,4696.7,0.0134]
[1757728491643,0.792,4698.3,4696.7,0.02129154]
[1757728491820,0.792,4698.3,4696.7,0.03469154]
[1757728492139,3.681,4698.4,4696.8,0.25541191]
[1757728492290,4.475,4698.7,4696.9,0.0134]
[1757728492490,3.683,4698.9,4697.0,1.88741191]
[1757728492802,0.792,4699.0,4697.1,3.0134]
[1757728493003,0.63850232,4699.2,4698.9,0.0215]
[1757728493218,2.5053,4699.1,4697.7,0.0134]
[1757728493395,2.0465,4699.1,4697.7,0.0134]
[1757728493813,0.63825102,4699.2,4697.7,0.0134]
[1757728494253,1.632,4699.9,4697.7,0.0134]
[1757728494433,2.0465,4699.1,4697.5,0.0134]
[1757728494833,0.4588,4699.0,4697.5,0.0134]
[1757728496064,0.4588,4699.0,4697.3,0.0134]
[1757728496230,0.4588,4699.0,4697.7,3.0]
[1757728496432,2.5053,4698.9,4697.7,3.0]
[1757728496635,2.5053,4698.9,4697.7,3.691]
[1757728496836,2.5053,4698.9,4697.8,0.02128655]
[1757728497155,2.0465,4698.9,4697.9,1.632]
[1757728498051,2.5053,4698.9,4697.9,1.632]
[1757728499222,2.5053,4699.4,4698.8,0.0215]
[1757728499636,2.5053,4699.7,4698.8,0.0215]
[1757728500280,2.0465,4699.7,4698.8,1.6535]
[1757728500461,0.4588,4700.0,4698.9,0.02128157]
[1757728500631,2.0465,4700.1,4698.9,3.02128157]
[1757728500836,2.0465,4700.7,4700.0,0.0215]
[1757728501233,0.06,4700.8,4700.0,3.04277659]
[1757728501479,0.06,4700.8,4700.0,3.0215]
[1757728502290,0.1056,4700.0,4699.9,1.632]
[1757728502594,2.899,4700.0,4699.9,1.632]
[1757728503061,2.6109,4700.0,4699.9,1.632]
[1757728503465,2.899,4700.0,4699.9,1.632]
[1757728504652,0.1056,4700.0,4699.9,1.67477704]
[1757728504991,2.0465,4700.7,4699.9,1.6535]
[1757728505382,0.4588,4700.6,4699.9,1.6535]
[1757728505905,0.06,4700.8,4700.0,0.02127659]
[1757728506360,0.5188,4700.8,4699.9,1.632]
[1757728506561,2.5653,4700.8,4699.9,1.632]
[1757728506890,0.2881,4700.0,4699.9,8.312]
[1757728507088,2.7934,4700.0,4699.9,8.312]
[1757728508689,0.792,4699.9,4699.2,1.632]
[1757728508989,0.2881,4699.3,4699.2,3.678]
[1757728509385,2.7934,4699.3,4699.2,3.678]
[1757728509791,2.5053,4699.3,4699.2,3.678]
[1757728510102,0.4588,4700.1,4699.2,3.6995]
[1757728510273,2.0465,4700.7,4699.3,0.02127976]
[1757728510663,0.4588,4700.6,4699.3,0.02127976]
[1757728510862,0.4588,4700.6,4699.3,3.02127976]
[1757728511474,0.1056,4699.5,4699.3,3.0134]
[1757728511680,0.1056,4699.5,4699.4,0.0215]
[1757728512222,0.1056,4699.5,4699.4,3.6945]
[1757728512511,0.1056,4699.5,4699.4,6.6945]
[1757728513095,0.1056,4699.5,4699.4,6.7079]
[1757728513684,0.06,4700.8,4699.5,3.0]
[1757728513907,0.1056,4699.8,4699.6,0.0212784]
[1757728514080,0.1056,4699.8,4699.7,0.0215]
[1757728514465,0.1056,4699.8,4699.7,6.6915]
[1757728516004,0.1056,4699.8,4699.7,6.7049]
[1757728516409,0.06,4700.8,4699.8,33.0]
[1757728516579,0.1056,4700.3,4700.0,3.0]
[1757728516780,0.1056,4700.3,4700.2,0.0215]
[1757728516981,0.1056,4700.3,4700.2,3.0215]
[1757728518183,0.1056,4700.3,4700.2,3.665]
[1757728518585,0.1056,4700.3,4699.9,1.632]
[1757728518771,1.8996,4700.6,4700.1,3.0]
[1757728518970,0.06,4700.8,4700.1,3.0]
[1757728519170,2.3546,4700.5,4700.1,3.0]
[1757728519813,2.3546,4700.4,4700.1,3.0]
[1757728520428,2.3546,4700.4,4699.9,1.632]
[1757728520429,0.1056,4700.1,4699.9,1.632]
[1757728520656,0.1056,4700.1,4700.0,6.68427659]
[1757728520860,0.1056,4700.1,4700.0,6.6845]
[1757728522310,0.06,4700.8,4700.0,6.6845]
[1757728522657,0.1056,4700.4,4700.1,3.0]
[1757728522842,0.1056,4700.4,4700.3,0.0215]
[1757728523044,0.1056,4700.4,4700.3,6.6805]
[1757728523416,0.1056,4700.4,4700.3,6.7861]
[1757728526063,0.1056,4700.4,4700.3,3.1271]
[1757728526359,0.1056,4700.4,4700.3,6.7821]
[1757728527160,0.1056,4700.4,4700.3,36.7821]
[1757728529221,0.1056,4700.4,4700.3,6.6765]
[1757728530954,0.1056,4700.4,4700.3,3.0215]
[1757728531138,0.1056,4700.4,4700.3,6.6705]
[1757728531426,2.7761,4700.4,4700.3,6.649]
[1757728532027,2.7781,4700.4,4700.3,6.649]
[1757728532630,2.7781,4700.4,4700.3,3.0]
[1757728532830,2.7781,4700.4,4700.3,6.646]
[1757728535973,3.06191,4700.4,4700.0,1.631]
[1757728536170,0.455,4700.3,4700.1,3.643]
[1757728536333,2.3546,4700.3,4700.0,1.631]
[1757728536540,0.295631,4700.2,4700.1,3.644]
[1757728536792,2.966131,4700.2,4700.1,6.644]
[1757728537138,2.6705,4700.2,4700.1,6.644]
[1757728537393,2.6705,4700.2,4700.1,3.644]
[1757728537569,2.6705,4700.2,4700.1,6.644]
[1757728547188,0.002,4700.4,4700.2,3.0]
[1757728547359,0.002,4700.4,4700.3,6.65427523]
[1757728547559,0.002,4700.4,4700.3,6.633]
[1757728547861,0.304,4700.4,4700.3,6.633]
[1757728548278,2.6025,4700.4,4700.3,6.633]
[1757728555604,0.1056,4700.3,4700.0,1.631]
[1757728555803,0.4554,4700.2,4700.1,3.624]
[1757728556005,2.6005,4700.2,4700.1,3.624]
[1757728557367,2.6005,4700.2,4700.0,1.631]
[1757728557568,0.302,4700.2,4700.1,3.626]
[1757728558208,2.6005,4700.2,4700.1,3.626]
[1757728558823,2.6005,4700.2,4700.1,6.626]
[1757728559120,0.002,4700.4,4700.2,3.0]
[1757728559268,2.3005,4700.4,4700.3,6.623]
[1757728559714,0.002,4700.4,4700.3,6.6445]
[1757728564901,0.002,4700.4,4700.3,6.623]
[1757728565311,0.002,4700.4,4700.3,6.617]
[1757728565895,0.002,4700.4,4700.3,6.6385]
[1757728567702,0.002,4700.4,4700.3,7.05795913]
[1757728567919,0.002,4700.4,4700.3,6.98025945]
[1757728568106,0.002,4700.4,4700.3,36.98025945]
[1757728569113,0.002,4700.4,4700.3,6.98025945]
[1757728569845,0.002,4700.4,4700.3,36.98025945]
[1757728572621,0.002,4700.4,4700.3,37.16355913]
[1757728573658,0.002,4700.4,4700.3,37.95555913]
[1757728573866,0.002,4700.4,4700.3,39.86174636]
[1757728574734,0.002,4700.4,4700.3,37.95555913]
[1757728575148,0.002,4700.4,4700.3,39.85735987]
[1757728575871,0.002,4700.4,4700.3,37.95555913]
[1757728576836,0.002,4700.4,4700.3,34.30365913]
[1757728577158,0.002,4700.4,4700.3,35.2585]
[1757728577357,0.002,4700.4,4700.3,38.237]
[1757728577560,2.7248,4700.4,4700.3,38.237]
[1757728581020,0.002,4700.4,4700.3,38.2585]
[1757728582789,0.002,4700.4,4700.3,38.49465945]
[1757728584474,0.002,4700.4,4700.3,38.57968994]
[1757728584751,0.002,4700.4,4700.3,38.56628994]
[1757728585019,0.002,4700.4,4700.3,39.37168994]
[1757728585677,0.002,4700.4,4700.3,41.4559096]
[1757728585876,0.002,4700.4,4700.3,39.55498962]
[1757728587135,0.002,4700.4,4700.3,39.66058962]
[1757728589069,0.0006608,4700.4,4700.3,39.66058962]
[1757728590921,0.0006608,4700.4,4700.3,39.47728994]
[1757728591547,0.0006608,4700.4,4700.3,35.64853049]
[1757728591749,0.0006608,4700.4,4700.3,39.22913049]
[1757728592348,0.0006608,4700.4,4700.3,39.66858962]
[1757728593661,0.002,4701.4,4700.6,0.792]
[1757728593969,0.002,4701.4,4700.8,6.45479536]
[1757728594155,0.002,4701.4,4701.3,0.0215]
[1757728594461,0.002,4701.4,4701.3,39.1431]
[1757728595074,0.002,4701.4,4701.3,39.78063893]
[1757728595970,0.002,4701.4,4701.3,9.78063893]
[1757728597064,0.002,4701.4,4701.3,39.78063893]
[1757728598629,0.002,4701.4,4701.3,36.18763893]
[1757728598832,0.002,4701.4,4701.3,39.77763893]
[1757728601692,0.002,4701.4,4701.3,39.77463893]
[1757728602183,0.002,4701.4,4701.3,35.26853893]
[1757728602184,2.6745,4701.4,4701.3,35.26853893]
[1757728602345,2.6745,4701.4,4701.3,37.17125751]
[1757728602545,2.6745,4701.4,4701.3,40.75825751]
[1757728602774,2.6745,4701.4,4701.3,38.85553893]
[1757728603879,2.6745,4701.4,4701.3,35.26853893]
[1757728604084,2.6745,4701.4,4701.3,38.85353893]
[1757728604891,2.2127,4701.4,4701.3,38.85353893]
[1757728605087,2.644,4701.4,4701.3,8.85353893]
[1757728605289,2.644,4701.4,4701.3,38.85353893]
[1757728606101,2.644,4701.4,4701.3,8.85353893]
[1757728606307,2.644,4701.4,4701.3,38.85353893]
[1757728606862,2.644,4701.4,4701.3,38.85253893]
[1757728607062,2.644,4701.4,4701.3,8.85253893]
[1757728607295,2.644,4701.4,4701.3,40.75525751]
[1757728608009,2.644,4701.4,4701.3,37.17125751]
[1757728608167,2.644,4701.4,4701.3,40.75425751]
[1757728608368,2.644,4701.4,4701.3,38.85053893]
[1757728609320,2.644,4701.4,4701.3,35.26853893]
[1757728609500,2.644,4701.4,4701.3,38.85053893]
[1757728611289,2.644,4701.4,4701.3,40.75325751]
[1757728611478,2.644,4701.4,4701.3,37.17125751]
[1757728611678,2.644,4701.4,4701.3,38.84853893]
[1757728612193,2.644,4701.4,4701.3,40.75125751]
[1757728612912,0.002,4701.4,4701.3,41.30441664]
[1757728613083,0.002,4701.4,4701.3,39.40169806]
[1757728613284,0.002,4701.4,4701.3,9.40169806]
[1757728613488,0.002,4701.4,4701.3,39.40169806]
[1757728615524,0.002,4701.4,4701.3,39.38019806]
[1757728615837,2.5064,4701.4,4701.3,39.15743861]
[1757728615983,2.5064,4701.4,4701.3,35.57743861]
[1757728616184,2.5064,4701.4,4701.3,38.95413893]
[1757728616383,2.5064,4701.4,4701.3,8.95413893]
[1757728616616,2.5064,4701.4,4701.3,38.95413893]
[1757728616818,2.5064,4701.4,4701.3,38.84853893]
[1757728617004,2.5064,4701.4,4701.3,40.75717277]
[1757728617312,2.5064,4701.4,4701.3,40.11963384]
[1757728618522,2.5064,4701.4,4701.3,10.11963384]
[1757728618748,2.5064,4701.4,4701.3,40.11963384]
[1757728619501,2.0755,4701.4,4701.3,40.11963384]
[1757728619704,2.5064,4701.4,4701.3,40.11963384]
[1757728620815,2.5064,4701.4,4701.3,38.211]
[1757728623127,0.002,4701.4,4701.3,38.3166]
[1757728623323,0.002,4701.4,4701.3,40.24673384]
[1757728623523,0.002,4701.4,4701.3,38.76415913]
[1757728623769,2.5064,4701.4,4701.3,38.211]
[1757728624114,2.5064,4701.4,4701.3,40.11885668]
[1757728624835,2.5064,4701.4,4701.3,36.53885668]
[1757728625039,2.5064,4701.4,4701.3,40.11885668]
[1757728626328,2.5064,4701.4,4701.3,10.11885668]
[1757728626672,2.5064,4701.4,4701.3,40.11885668]
[1757728627030,2.5064,4701.4,4701.3,38.211]
[1757728630869,2.5064,4701.4,4701.3,35.211]
[1757728631072,2.5064,4701.4,4701.3,38.211]
[1757728631932,2.5064,4701.4,4701.3,8.211]
[1757728638179,2.5064,4701.4,4701.3,5.211]
[1757728638904,2.75704,4701.4,4701.3,5.211]
[1757728641805,3.54904,4701.4,4701.3,5.211]
[1757728642198,3.54904,4701.4,4701.3,1.631]
[1757728642389,3.54904,4701.4,4701.3,5.211]
[1757728645697,3.54904,4701.4,4701.3,1.631]
[1757728645899,0.792,4701.3,4700.8,0.001]
[1757728646231,0.792,4701.1,4700.5,0.463]
[1757728646431,2.3767,4701.0,4700.6,0.463]
[1757728646611,2.3767,4701.0,4700.7,0.899]
[1757728646933,0.3043,4700.8,4700.7,0.899]
[1757728647433,2.681,4700.8,4700.7,0.899]
[1757728659576,0.002,4701.4,4700.7,0.899]
[1757728659577,1.9393,4701.1,4700.7,0.899]
[1757728659902,1.9393,4701.0,4700.7,0.899]
[1757728660801,2.3767,4701.0,4700.7,0.899]
[1757728664027,1.9393,4700.9,4700.7,0.899]
[1757728664399,2.3767,4700.9,4700.7,0.899]
[1757728664599,2.681,4700.8,4700.7,0.899]
[1757728664920,2.9491,4700.8,4700.7,3.0]
[1757728665130,2.9491,4700.8,4700.7,6.58]
[1757728665525,3.7411,4700.8,4700.7,6.58]
[1757728667106,0.792,4700.7,4700.4,0.001]
[1757728667342,0.792,4700.5,4700.4,0.001]
[1757728667533,1.0837,4700.5,4700.4,0.001]
[1757728667731,3.3674,4700.5,4700.4,0.001]
[1757728673056,3.45250629,4700.5,4700.4,0.001]
[1757728673277,8.57993954,4700.5,4700.4,0.001]
[1757728673418,8.57993954,4700.5,4699.9,0.001]
[1757728673419,0.792,4700.3,4699.9,0.001]
[1757728673620,2.91972364,4699.9,4699.3,0.001]
[1757728673875,1.0837,4699.4,4699.3,0.001]
[1757728674074,4.93527,4699.4,4699.3,0.001]
[1757728674216,7.85736091,4699.4,4699.3,0.001]
[1757728674421,4.27736091,4699.4,4699.3,0.001]
[1757728674654,8.27320407,4699.4,4699.3,0.001]
[1757728675467,4.69320407,4699.4,4699.3,0.001]
[1757728675633,8.27320407,4699.4,4699.3,0.001]
[1757728678464,4.69320407,4699.4,4699.3,0.001]
[1757728678628,8.27320407,4699.4,4699.3,0.001]
[1757728688628,10.40113529,4699.4,4699.3,0.001]
[1757728689786,8.27320407,4699.4,4699.3,0.001]
[1757728690188,10.40113529,4699.4,4699.3,0.001]
[1757728690626,8.27320407,4699.4,4699.3,0.001]
[1757728691195,4.69320407,4699.4,4699.3,0.001]
[1757728691410,8.27320407,4699.4,4699.3,0.001]
[1757728691938,4.69320407,4699.4,4699.3,0.001]
[1757728692099,8.27320407,4699.4,4699.3,0.001]
[1757728692525,3.44250407,4699.4,4699.3,0.001]
[1757728692709,7.48120407,4699.4,4699.3,0.001]
[1757728692920,8.27320407,4699.4,4699.3,0.001]
[1757728693436,10.40113529,4699.4,4699.3,0.001]
[1757728693614,4.69320407,4699.4,4699.3,0.001]
[1757728693816,8.27320407,4699.4,4699.3,0.001]
[1757728694716,10.40113529,4699.4,4699.3,0.001]
[1757728695241,8.27320407,4699.4,4699.3,0.001]
[1757728695760,10.40113529,4699.4,4699.3,0.001]
[1757728695940,6.82113529,4699.4,4699.3,0.001]
[1757728696253,10.40113529,4699.4,4699.3,0.001]
[1757728696770,6.82113529,4699.4,4699.3,0.001]
[1757728696923,10.40113529,4699.4,4699.3,0.001]